Cogmind - Beta 15 @@@ ROGUE MODE // 2025.08.24 @ 00:34:31 Player: shapeshifter Result: Self-destructed Performance ------------- Evolutions (1) 500 Regions Visited (5) 1000 Robots Destroyed (67) 335 Value Destroyed (1034) 1034 Prototype IDs (24) 480 Alien Tech Used (0) 0 Bonus (300) 300 TOTAL SCORE: 3649 Bonus ------- Aligned with FarCom 300 Cogmind --------- Core Integrity 185/400 Matter 222/300 Energy 280/280 System Corruption 0% Temperature Cool (0) Movement Treading (155) Location -9/Exiles Parts ------- > --- POWER (1) -------- Cooled Ion Engine > --- PROPULSION (3) --- Light Treads Light Treads Advanced Treads > --- UTILITY (2) ------ High-capacity Storage Unit Medium Armor Plating > --- WEAPON (3) ------- Shotgun > --- INVENTORY (20) --- Makeshift Power Source Cold Fusion Reactor Light Neutrino Core Light Treads Makeshift Leg Makeshift Weapon Shielding Medium Armor Plating EX Chip 1 EX Chip 1 Hacking Suite EX Chip 2 EX Chip 2 YOLO Cannon Light Assault Rifle Light Assault Rifle Light Assault Rifle Shotgun EMP Blaster Deploy-a-Sentry Peak State ------------ > --- POWER ------------ Cooled Ion Engine > --- PROPULSION ------- Light Treads Light Treads Advanced Treads > --- UTILITY ---------- High-capacity Storage Unit Medium Armor Plating > --- WEAPON ----------- YOLO Cannon Shotgun > --- INVENTORY -------- Light Neutrino Core Light Treads Makeshift Leg Medium Armor Plating Hacking Suite Light Assault Rifle Light Assault Rifle Light Assault Rifle Shotgun EMP Blaster Deploy-a-Sentry [Rating: 36] Favorites ----------- Power Cooled Ion Engine Engine Cooled Ion Engine Propulsion Advanced Treads Treads Advanced Treads Utility Large Storage Unit Device Seismic Detector Storage Large Storage Unit Protection Medium Armor Plating Weapon Shotgun Energy Cannon YOLO Cannon Ballistic Gun Shotgun Launcher EMP Blaster Build | -11 -10 -10 -9 -9 -9 ------- Run | Yrd Mat Min Mat Min Exi Slots Evolved 2 | . . . 2 . . Power . | . . . . . . Propulsion 1 | . . . 1 . . Utility . | . . . . . . Weapon 1 | . . . 1 . . Parts Attached 35 | 7 3 . 15 2 8 Power 3 | 1 . . 1 . 1 Engine 3 | 1 . . 1 . 1 Core . | . . . . . . Reactor . | . . . . . . Propulsion 12 | 2 . . 8 . 2 Treads 12 | 2 . . 8 . 2 Leg . | . . . . . . Wheel . | . . . . . . Hover . | . . . . . . Flight . | . . . . . . Utility 7 | 2 1 . 1 1 2 Device 1 | 1 . . . . . Storage 3 | 1 1 . . . 1 Processor . | . . . . . . Hackware . | . . . . . . Protection 3 | . . . 1 1 1 Artifact . | . . . . . . Weapon 13 | 2 2 . 5 1 3 Energy Gun . | . . . . . . Energy Cannon 1 | . . . . . 1 Ballistic Gun 11 | 2 2 . 5 1 1 Ballistic Cannon . | . . . . . . Launcher 1 | . . . . . 1 Special Weapon . | . . . . . . Impact Weapon . | . . . . . . Slashing Weapon . | . . . . . . Piercing Weapon . | . . . . . . Special Melee Weapon . | . . . . . . Unidentified Prototypes 1 | . . . 1 . . Parts Lost 9 | . . . . . 9 Power 1 | . . . . . 1 Propulsion 3 | . . . . . 3 Utility 1 | . . . . . 1 Weapon 4 | . . . . . 4 Highest Loss Streak 9 | . . . . . 9 To Critical Strikes 6 | . . . . . 6 Average Backups 13 | 3 10 13 13 14 13 Power 1 | . 1 1 1 1 1 Propulsion 3 | 1 2 3 3 4 2 Utility 4 | . 4 7 5 3 2 Weapon 4 | . 1 2 3 6 6 Tool/Special . | . . . . . . Unused Backups 29 | . 1 . 12 . 16 Power 8 | . . . 2 . 6 Propulsion 5 | . . . 4 . 1 Utility 11 | . . . 4 . 7 Weapon 5 | . 1 . 2 . 2 Tool/Special . | . . . . . . Average Slot Usage (%) 98 | . 99 100 99 99 95 Engine 11 | . 14 14 11 11 10 Treads 32 | . 28 28 32 33 32 Device 4 | . 14 14 7 . . Storage 11 | . 14 14 11 11 11 Protection 6 | . . . 3 11 11 Ballistic Gun 29 | . 27 28 32 32 26 Peak Build Rating 36 | 7 11 11 23 23 36 Average Rating 18 | 4 9 11 17 22 23 On Entrance 12 | . 7 11 11 23 22 Naked Turns . | . . . . . . Heaviest Build 76 | 13 32 32 44 44 76 Greatest Support 66 | 40 40 40 66 66 66 Greatest Overweight (x) 1 | . . . . . 1 Average Overweight (x) . | . . . . . . Largest Inventory Capacity 20 | 8 15 15 15 15 20 Average Capacity 16 | 7 13 15 15 15 19 Most Carried 20 | 6 13 13 15 15 20 Average Carried 13 | 3 10 13 13 14 14 Final Capacity 20 | 8 15 15 15 15 20 Final Carried 20 | 4 13 13 15 15 20 Class Distribution -------------------- 55% | Tank 24% | Mutant 19% | Gunner Dominant Class ---------------- Mutant | -10/Materials Mutant | -10/Mines Gunner | -9/Materials Tank | -9/Mines Tank | -9/Exiles Resources | -11 -10 -10 -9 -9 -9 ----------- Run | Yrd Mat Min Mat Min Exi Matter Collected 1853 | 280 101 . 636 429 407 Remotely . | . . . . . . Salvage Created 1718 | 87 194 . 792 372 273 Parts 161 | 5 17 . 66 32 41 Haulers Intercepted 3 | . . . 3 . . Recyclers Shooed 1 | . . . 1 . . Parts Field Recycled . | . . . . . . Retrieved Matter . | . . . . . . Parts Self-Destructed . | . . . . . . Prevented . | . . . . . . Kills | -11 -10 -10 -9 -9 -9 ------- Run | Yrd Mat Min Mat Min Exi Combat Hostiles Destroyed 48 | . 10 . 19 15 4 Guns 48 | . 10 . 19 15 4 Classes Destroyed 12 | 2 3 . 3 1 3 Worker 1 | . . . 1 . . Tunneler 1 | 1 . . . . . Hauler 3 | . . . 3 . . Recycler 4 | 1 . . 2 1 . Turret 1 | . . . . . 1 Watcher 2 | . 1 . 1 . . Swarmer 29 | . 8 . 11 10 . Grunt 9 | . 2 . 3 4 . Brawler 1 | . . . . 1 . Sentry 5 | . . . 5 . . Zionite 8 | . . . . . 8 Assembled 3 | . . . . . 3 Best Kill Streak 5 | 2 5 . 5 5 5 Combat Bots Only 5 | . 5 . 4 5 3 Max Kills in Single Turn 3 | 1 2 . 3 2 3 Gunslinging 1 | . . . . 1 . Exploded . | . . . . . . Melee . | . . . . . . Uniques/NPCs Destroyed 4 | . . . . . 4 8R-AWN (-9/Exiles) EX-BIN (-9/Exiles) EX-DEC (-9/Exiles) EX-HEX (-9/Exiles) Combat | -11 -10 -10 -9 -9 -9 -------- Run | Yrd Mat Min Mat Min Exi Hostile Shots Fired 257 | . 35 . 54 70 98 Missed 69 | . 10 . 19 20 20 Hits 188 | . 25 . 35 50 78 Projectile 188 | . 25 . 35 50 78 Critical Strikes 26 | . . . . 1 25 Damage Taken 2419 | . 208 . 379 474 1358 Core 257 | . 42 . 44 24 147 Absorbed by Shields . | . . . . . . Core Remaining (%) 91 | 100 . 83 . . . Volleys Fired 158 | 5 25 . 40 31 57 Largest 3 | 2 2 . 3 3 3 Hottest 100 | 40 46 . 69 69 100 Shots Fired 398 | 10 50 . 120 87 131 Gun 382 | 10 50 . 120 87 115 Cannon 7 | . . . . . 7 Launcher 9 | . . . . . 9 Special . | . . . . . . Kinetic 382 | 10 50 . 120 87 115 Thermal 7 | . . . . . 7 Explosive . | . . . . . . Electromagnetic 9 | . . . . . 9 Robot Hit Streak 16 | 4 4 . 10 10 16 Robot Miss Streak 9 | 2 7 . 7 9 3 Penetration Max . | . . . . . . Secondary Targets 7 | . 2 . . 5 . Max Gunslinging Chain 1 | . 1 . . 1 . Shots Hit Robots 257 | 6 25 . 76 48 102 Core Hits 127 | 5 16 . 45 24 37 Critical Kills . | . . . . . . Critical Parts Destroyed . | . . . . . . Critical Strikes 3 | . . . 1 . 2 Destroy 3 | . . . 1 . 2 Melee Attacks . | . . . . . . Impact . | . . . . . . Slashing . | . . . . . . Piercing . | . . . . . . Sneak Attacks . | . . . . . . Combat Hostiles . | . . . . . . Follow-up Attacks . | . . . . . . Damage Inflicted 4566 | 47 309 . 1138 736 2336 Guns 3561 | 47 309 . 1138 736 1331 Cannons 539 | . . . . . 539 Explosions 466 | . . . . . 466 Melee . | . . . . . . Ramming . | . . . . . . Kinetic 3561 | 47 309 . 1138 736 1331 Thermal 909 | . . . . . 909 Explosive . | . . . . . . Electromagnetic 96 | . . . . . 96 Impact . | . . . . . . Slashing . | . . . . . . Piercing . | . . . . . . Highest Corruption . | . . . . . . Average Corruption . | . . . . . . Corruption Purged . | . . . . . . Corruption Blocked . | . . . . . . Overload Shots . | . . . . . . Overflow Damage 19 | . . . . . 19 Projectiles 19 | . . . . . 19 Explosions . | . . . . . . Melee . | . . . . . . Knockbacks . | . . . . . . Impact . | . . . . . . Kinetic . | . . . . . . Secondary . | . . . . . . Self-Inflicted Damage 2 | . . . . . 2 Shots 1 | . . . . . 1 Rammed . | . . . . . . Targets Rammed . | . . . . . . Kicked . | . . . . . . Crushed . | . . . . . . Highest Temperature 98 | . 1 . 24 98 48 Average Temperature 16 | . 1 . 8 22 12 Received Heat Transfer 313 | . 36 . 99 138 40 Siege Activations . | . . . . . . Martial Activations . | . . . . . . Shielding Activations . | . . . . . . Robots Disrupted . | . . . . . . Combat Hostiles . | . . . . . . Robots Corrupted 1 | . . . . . 1 Combat Hostiles . | . . . . . . Parts Fried . | . . . . . . Impact Corruptions . | . . . . . . Robots Melted . | . . . . . . Combat Hostiles . | . . . . . . Parts Melted 5 | . . . . . 5 Heat Transferred 560 | . . . . . 560 Parts Sabotaged . | . . . . . . Parts Stolen . | . . . . . . Parts Stripped . | . . . . . . Power Chain Reactions . | . . . . . . Alert | -11 -10 -10 -9 -9 -9 ------- Run | Yrd Mat Min Mat Min Exi Maximum Alert Level 1 | . . . 1 1 . Low Security (%) 84 | 100 100 100 63 99 . Level 1 15 | . . . 36 . . Level 2 . | . . . . . . Level 3 . | . . . . . . Level 4 . | . . . . . . Level 5 . | . . . . . . High Security . | . . . . . . Max Security . | . . . . . . Peak Influence 283 | 5 146 37 283 203 . Initial 93 | . . 37 . 93 . Average 99 | . 52 19 122 127 . Influence Increases 1204 | 10 267 . 557 370 . Destroy 0b10 Robot/C 880 | . 200 . 380 300 . Destroy 0b10 Robot/NC 55 | 10 5 . 35 5 . Destroy Leader 180 | . 32 . 98 50 . Successful Hack 14 | . . . 14 . . Disable Machine 15 | . . . . 15 . Lose Combat Pursuer 60 | . 30 . 30 . . Influence Decreases 1204 | 10 169 98 316 474 137 Entered New Map 346 | . . 61 . 148 137 Time Decay 858 | 10 169 37 316 326 . Squads Dispatched 2 | . . . 2 . . Investigation 1 | . . . 1 . . Extermination . | . . . . . . Reinforcement 1 | . . . 1 . . Assault . | . . . . . . Garrison . | . . . . . . Intercept . | . . . . . . Searches Triggered . | . . . . . . Construction Impeded . | . . . . . . Haulers Reinforced . | . . . . . . Active Scanning Responses . | . . . . . . Cargo Convoy Interrupts . | . . . . . . Stealth | -11 -10 -10 -9 -9 -9 --------- Run | Yrd Mat Min Mat Min Exi Distress Signals 4 | . 1 . 3 . . Communications Jammed . | . . . . . . Distress Signals . | . . . . . . Times Spotted 77 | . 15 . 29 16 17 Peak Tracking Total 9 | . 3 . 7 5 9 Tactical Retreats 5 | . 1 . 2 . 2 Traps | -11 -10 -10 -9 -9 -9 ------- Run | Yrd Mat Min Mat Min Exi Traps Triggered 2 | . 1 . 1 . . Indirectly . | . . . . . . Trap Hack Attempts . | . . . . . . Triggered . | . . . . . . Disarmed . | . . . . . . Reprogrammed . | . . . . . . Reused . | . . . . . . Traps Extracted . | . . . . . . Installed . | . . . . . . Triggered . | . . . . . . Machines | -11 -10 -10 -9 -9 -9 ---------- Run | Yrd Mat Min Mat Min Exi Machines Disabled 20 | . . . . 1 19 Max in Single Turn 3 | . . . . 1 3 Machines Repaired . | . . . . . . Machines Dismantled . | . . . . . . Machines Sabotaged . | . . . . . . Overloaded Fab Kills . | . . . . . . Hacking | -11 -10 -10 -9 -9 -9 --------- Run | Yrd Mat Min Mat Min Exi Machines Accessed 9 | . 4 . 3 . 2 Terminals 6 | . 4 . 2 . . Fabricators . | . . . . . . Repair Stations . | . . . . . . Recycling Units 1 | . . . 1 . . Scanalyzers . | . . . . . . Garrison Access . | . . . . . . Total Hacks 19 | . 11 . 6 . 2 Successful 9 | . 4 . 3 . 2 Failed 10 | . 7 . 3 . . Catastrophic 2 | . 1 . 1 . . Database Lockouts . | . . . . . . Manual 16 | . 9 . 6 . 1 Terminals 16 | . 11 . 5 . . Fabricators . | . . . . . . Repair Stations . | . . . . . . Recycling Units 1 | . . . 1 . . Scanalyzers . | . . . . . . Garrison Access . | . . . . . . Terminal Hacks 4 | . 1 . 1 . 2 Record 1 | . . . . . 1 Branch Access Points 1 | . . . 1 . . Zone Layout 1 | . 1 . . . . Proto ID Catalog 1 | . . . . . 1 Fabricator Hacks . | . . . . . . Repair Station Hacks . | . . . . . . Recycling Unit Hacks 1 | . . . 1 . . Report Inventory 1 | . . . 1 . . Scanalyzer . | . . . . . . Garrison Access Hacks . | . . . . . . Unauthorized Hacks 4 | . 3 . 1 . . Terminals 4 | . 3 . 1 . . Assimilate 1 | . . . 1 . . Botnet 3 | . 3 . . . . Fabricators . | . . . . . . Repair Stations . | . . . . . . Recycling Units . | . . . . . . Scanalyzers . | . . . . . . Garrison Access . | . . . . . . Data Cores Recovered . | . . . . . . Used . | . . . . . . Hacking Detections 6 | . 4 . 2 . . Full Trace Events 3 | . 2 . 1 . . Feedback Events . | . . . . . . Feedback Blocked . | . . . . . . Robot Schematics Acquired . | . . . . . . Robots Built . | . . . . . . Authchips . | . . . . . . Time . | . . . . . . Total Robot Build Rating . | . . . . . . Part Schematics Acquired . | . . . . . . Parts Built . | . . . . . . Authchips . | . . . . . . Time . | . . . . . . Total Part Build Rating . | . . . . . . Parts Repaired . | . . . . . . Time . | . . . . . . Parts Recycled . | . . . . . . Recycled Matter . | . . . . . . Retrieved Matter . | . . . . . . Retrieved Components . | . . . . . . Parts Scanalyzed . | . . . . . . Part Schematics Acquired . | . . . . . . Parts Damaged . | . . . . . . Bothacking | -11 -10 -10 -9 -9 -9 ------------ Run | Yrd Mat Min Mat Min Exi Used RIF Installer . | . . . . . . Robots Hacked . | . . . . . . Non-combat . | . . . . . . Combat . | . . . . . . Robot Hacks Applied . | . . . . . . Relay Couplers Released . | . . . . . . Fabnet Peak Effective % . | . . . . . . Robots Rewired . | . . . . . . Allies Hacked . | . . . . . . Hacks Repelled . | . . . . . . Allies | -11 -10 -10 -9 -9 -9 -------- Run | Yrd Mat Min Mat Min Exi Total Allies . | . . . . . . Largest Group . | . . . . . . Highest-Rated Group . | . . . . . . Highest-Rated Ally . | . . . . . . Total Orders . | . . . . . . Ally Attacks . | . . . . . . Total Damage . | . . . . . . Kills . | . . . . . . Allies Corrupted . | . . . . . . Allies Melted . | . . . . . . Intel | -11 -10 -10 -9 -9 -9 ------- Run | Yrd Mat Min Mat Min Exi Active Infowar (turns) 1442 | 20 566 88 768 . . Seismic 1442 | 20 566 88 768 . . Robot Analysis Total . | . . . . . . Derelict Logs Recovered 2 | . . . . 2 . Drone Launches . | . . . . . . Drone Recoveries . | . . . . . . Exploration | -11 -10 -10 -9 -9 -9 ------------- Run | Yrd Mat Min Mat Min Exi Turns Passed 3916 | 113 566 88 1112 733 1304 Spaces Moved 2075 | 62 298 53 575 420 667 Core 15 | 15 . . . . . Treads 2060 | 47 298 53 575 420 667 Legs . | . . . . . . Wheels . | . . . . . . Hover . | . . . . . . Flight . | . . . . . . Fastest Speed 50 | 50 160 160 145 145 145 Average Speed 154 | 133 160 160 155 145 158 Slowest Speed 235 | 160 160 160 160 145 235 Overloaded Moves . | . . . . . . Propulsion Burnouts . | . . . . . . Robots Hopped . | . . . . . . Potential Cave-ins . | . . . . . . Cave-ins Triggered . | . . . . . . Exploration Rate (%) 48 | 4 55 15 43 86 86 Regions Visited 5 Branch Regions 3 Pre-discovered Areas 2 | . . . . 1 1 Known Exits Taken 1 | . . . 1 . . Unknown Exits Taken 4 | 1 1 1 . 1 . Scrap Searched 1 | . . . . 1 . Spaces Dug . | . . . . . . Terrain Destroyed 22 | . . . . . 22 Melee . | . . . . . . Projectile . | . . . . . . AOE 22 | . . . . . 22 Terrain Rammed . | . . . . . . Walls Destroyed . | . . . . . . Machines Disabled . | . . . . . . Actions | -11 -10 -10 -9 -9 -9 --------- Run | Yrd Mat Min Mat Min Exi Total 2479 | 84 343 56 712 481 803 Wait 104 | . . 4 39 25 36 Move 2070 | 61 297 52 574 419 667 Hop . | . . . . . . Pick Up 63 | 11 14 . 20 1 17 Fast Attach 1 | . . . . 1 . Attach 22 | 7 2 . 2 . 11 Detach 4 | . . . . . 4 Swap 20 | . 1 . 13 2 4 Drop 37 | . 4 . 24 2 7 Fire 158 | 5 25 . 40 31 57 Melee . | . . . . . . Ram . | . . . . . . Kick . | . . . . . . Crush . | . . . . . . Escape Stasis . | . . . . . . Rewire . | . . . . . . Trap . | . . . . . . Miscellaneous . | . . . . . . Route ------- -11/Scrapyard -10/Materials (discovered 4 exits: *Mat x2 / [*Min] / [*Sub]) -10/Mines -9/Materials (discovered 2 exits: *Min / Sto) -9/Mines (discovered 2 exits: [*Mat] / *Exi) -9/Exiles History --------- Turn | Location | Event 6 | -11/Scrapyard | Discovered new exit (range 15) 114 | -11/Scrapyard | Entered Materials 311 | -10/Materials | Build established: Mutant 352 | -10/Materials | Discovered new exit (range 10) 379 | -10/Materials | Discovered new exit (range 15) 471 | -10/Materials | Discovered new exit (range 15) 629 | -10/Materials | Discovered new exit (range 12) 680 | -10/Materials | Entered Mines 695 | -10/Mines | Discovered new exit (range 9) 768 | -10/Mines | Entered Materials 768 | -9/Materials | Evolved 2 slots: Propulsion x1, Weapon x1 1082 | -9/Materials | Build established: Gunner 1553 | -9/Materials | Identified exit to Mines 1553 | -9/Materials | Identified exit to Storage 1834 | -9/Materials | Build established: Tank 1880 | -9/Materials | Entered Mines 2141 | -9/Mines | Learned location of Zion (-6) 2147 | -9/Mines | Discovered new exit (range 9) 2266 | -9/Mines | Found a hidden stash of uninstalled traps 2462 | -9/Mines | Learned Materials non-interactive machine intel 2576 | -9/Mines | Deemed a non-threat by the Exiles lab entrance 2576 | -9/Mines | Discovered new exit (range 5) 2613 | -9/Mines | Entered Exiles 2648 | -9/Exiles | Met 8R-AWN 2670 | -9/Exiles | Met EX-HEX 2745 | -9/Exiles | Met EX-DEC 3046 | -9/Exiles | Met EX-BIN 3064 | -9/Exiles | Aligned with FarCom system 3066 | -9/Exiles | Given EX-Vault access code 3099 | -9/Exiles | Opened EX-Vault 3108 | -9/Exiles | Found YOLO Cannon 3139 | -9/Exiles | Warned to stay clear of 0b10 Research branches 3259 | -9/Exiles | Attacked by the Exiles 3473 | -9/Exiles | Core integrity fell below 50% 3480 | -9/Exiles | Destroyed 8R-AWN 3486 | -9/Exiles | Lost 9 parts (1p3n1u4w) 3690 | -9/Exiles | Destroyed EX-BIN 3711 | -9/Exiles | Destroyed EX-DEC 3736 | -9/Exiles | Destroyed EX-HEX 3808 | -9/Exiles | Found Deploy-a-Sentry 3917 | -9/Exiles | Self-destructed Last Messages --------------- 03719_ 18-IAM(z) destroyed. 03723_ 5L-KAT destroyed. 03736_ Testing Apparatus damaged. 03736_ EX-HEX destroyed. 03768_ GM-J5T destroyed. 03775_ Acquired 12 matter. 03808_ Acquired Deploy-a-Sentry. 03811_ Acquired Mak. Leg. 03822_ Acquired Prototype Power Core. 03825_ Acquired EX Chip 2. 03827_ Acquired EX Chip 1. 03830_ Acquired EX Chip 2. 03831_ Acquired 14 matter. 03834_ Acquired EX Chip 1. 03838_ Acquired 8 matter. 03861_ Acquired Mak. Weapon Shielding. 03864_ Acquired Mak. Power Source. 03868_ Acquired Prototype Reactor. 03877_ Acquired 10 matter. 03880_ Acquired 12 matter. Map ----- +----------------------------------------------------+ | % "####??????# #????????##"" #??????????? | | """##???### ###?######"" #??????????? | | # % % "#####X# #"###""""""" ##?????????? | | # % """""" " "" ##???###### | | #"# % "" """ " #####""""" | | #### % " " " """ | | ???### "" | | ?????### % " | | ???????#" | | ???????#"" | | ???????####" | | ??????????#""" """""" | | ?????????##" ######""" | | ?????????#"" ""##????#####""" | | ????????##""" """##?????????##""" | | ????????#""" """##???????????#"""" | | ????????#""" ""#???????????##"" | | ????????#" ########??####"""" | | ????????# ##aaa####""" | | ????????# """" | | ????????## % | | ?????????# | | ?????????## " | | ??????????# " "" "" | | ??????????# ""## ##""" " " ""# | | ??????????# @ ""#### ######""" """# | | ??????????#" """"##??# #????###""""## | | ??????????#""" """#??## ####???######? | | ??????????## ""##??#! "!#?????????? | | ???????????#"" """##???#" !#?????????? | | ???????????##""" ##????#" "#?????????? | | ????????????##"""" ##?????#!!""!"#?????????? | | ?????????????### #??????########?????????? | | ???????????????##### ##???????????????????????? | | ???????????????????## #????????????????????????? | | ????????????????????# #????????????????????????? | | ????????????????????# #????????????????????????? | | ????????????????????# #????????????????????????? | | ######???#######????# #????????????????????????? | | """"""#??#"""""""???# #????????????????????????? | | """"""#??#"""""""#??# #????????????????????????? | | """" "#??#" """"#?## ##???????????????????????? | | "" """#?##"" """###" "##??????????????????????? | | ""?##" ""?# " " #??????????????????????? | | " ####" ####""* ""#####??????????????????? | | """" "" = """""#?????????????????? | | "" ! "#"????????????????? | | = " ??????????????? | | = = " " ?????????????? | | " "??????????????? | +----------------------------------------------------+ Best States ------------- Heat Dissipation 28 Energy Generation 14 Energy Capacity 280 Matter Stores 300 Matter Capacity 300 Sight Range 16 Terrain Scan Density 10 Armor Coverage 225 Evasion (%) 50 Recoil Reduction 3 Item Schematics ----------------- None Robot Schematics ------------------ None Fabricated ------------ Nothing Repaired ---------- Nothing Alien Tech Used ----------------- None Achievements -------------- None Challenges ------------ None Game ------ Seed FieldthrustFocalEngine Manual? 0 Play Time 00:21:07 Cumulative 190.4 hours Start 2025.08.24 @ 00:13:49 End 2025.08.24 @ 00:34:31 Sessions 1 Manual Loads 0 Difficulty Rogue Special Mode None Game No. 298 Rogue 298 Adventurer 0 Explorer 0 Win Type - Total 4 Types 3/0/1/0/0/0/0/0/0/0 Lore% 79 Gallery% 75 Achievement% 55 Wizard Run 0 Options --------- Layout 1 ASCII 0 Keyboard 0 Movement Mouse Keybinds 0 Fullscreen 1 Font 32/SmallcapsGlow Map View 50x35 Zoom Use 0% Tactical HUD 1 Map Filters NONE Filters NONE Steam 1 RUN: 55e7c20e-f3a8-4448-b2f9-b434879b32b8